bitfinex/quotes_BTCUSD_20220226
["timestamp","ask_amount","ask_price","bid_price","bid_amount"]
[1645860226931,0.01,39139.0,39138.0,1.09366479]
[1645860227329,0.01,39139.0,39138.0,0.90346532]
[1645860228530,0.01,39139.0,39138.0,1.11920479]
[1645860229332,0.01,39139.0,39138.0,0.90346532]
[1645860231645,0.01,39139.0,39138.0,0.90546532]
[1645860231845,0.01,39139.0,39138.0,0.90346532]
[1645860232046,0.01,39139.0,39138.0,1.40346532]
[1645860232252,0.01,39139.0,39138.0,1.61906928]
[1645860233246,0.01,39139.0,39138.0,1.59352928]
[1645860233447,0.01,39139.0,39138.0,1.59354516]
[1645860233851,0.01,39139.0,39138.0,0.879971]
[1645860234047,0.01,39139.0,39138.0,0.379971]
[1645860235599,0.01,39139.0,39138.0,0.381971]
[1645860236400,0.01,39139.0,39138.0,0.431971]
[1645860236599,0.01,39139.0,39138.0,0.481971]
[1645860237402,0.01,39139.0,39138.0,0.479971]
[1645860237698,0.01,39139.0,39138.0,0.731971]
[1645860238944,0.01,39139.0,39138.0,0.729971]
[1645860239645,0.01,39139.0,39138.0,0.73282818]
[1645860241348,0.01,39139.0,39138.0,0.94842466]
[1645860241548,0.01,39139.0,39138.0,0.95042466]
[1645860241998,0.01,39139.0,39138.0,0.97596466]
[1645860242398,0.01,39139.0,39138.0,0.76036818]
[1645860242898,0.01,39139.0,39138.0,0.75836818]
[1645860243099,0.01,39139.0,39138.0,0.97398478]
[1645860243600,0.01,39139.0,39138.0,0.94844478]
[1645860244500,0.01,39139.0,39138.0,0.75836818]
[1645860244700,0.01,39139.0,39138.0,0.80956818]
[1645860244899,0.01,39139.0,39138.0,1.07909298]
[1645860245555,0.01,39139.0,39138.0,1.18109298]
[1645860245957,0.00123623,39146.0,39144.0,0.0021748]
[1645860246157,0.00123623,39146.0,39145.0,0.379971]
[1645860246459,0.00123623,39146.0,39145.0,0.429971]
[1645860246857,0.1189,39156.0,39145.0,0.429971]
[1645860247659,0.1189,39156.0,39145.0,0.430971]
[1645860248260,0.0001494,39151.0,39145.0,0.430971]
[1645860248859,0.0001494,39151.0,39145.0,0.429971]
[1645860249302,0.46432386,39156.0,39145.0,0.429971]
[1645860249503,0.0001494,39150.0,39145.0,0.429971]
[1645860250608,0.17390151,39151.0,39145.0,0.429971]
[1645860250804,0.00126007,39155.0,39154.0,0.0590938]
[1645860251004,0.19404719,39155.0,39154.0,0.0590938]
[1645860251603,0.19578712,39155.0,39154.0,0.0590938]
[1645860253055,0.19278712,39155.0,39154.0,0.0590938]
[1645860256998,0.00030804,39156.0,39154.0,0.0590938]
[1645860257602,0.21525135,39159.0,39154.0,0.0590938]
[1645860257999,0.23068407,39158.0,39154.0,0.0590938]
[1645860259099,0.23099272,39158.0,39154.0,0.0590938]
[1645860260199,0.23068407,39158.0,39154.0,0.0590938]
[1645860260401,0.21525135,39157.0,39154.0,0.0590938]
[1645860260846,0.21525135,39157.0,39154.0,0.3090938]
[1645860261049,0.44624407,39158.0,39154.0,0.3090938]
[1645860261347,0.44593542,39158.0,39154.0,0.3090938]
[1645860261546,0.00030865,39157.0,39154.0,0.3090938]
[1645860262147,0.21556,39157.0,39154.0,0.3090938]
[1645860262547,0.21525135,39157.0,39154.0,0.3090938]
[1645860262748,0.21555997,39157.0,39154.0,0.3090938]
[1645860264896,0.21525135,39157.0,39154.0,0.3090938]
[1645860265093,0.21555997,39157.0,39154.0,0.3090938]
[1645860266101,0.21525135,39157.0,39154.0,0.3090938]
[1645860266295,0.21555997,39157.0,39154.0,0.3090938]
[1645860267297,0.23068407,39158.0,39154.0,0.3090938]
[1645860267298,0.21525135,39155.0,39154.0,0.3090938]
[1645860269549,0.21555997,39156.0,39154.0,0.3090938]
[1645860269750,0.21525135,39155.0,39154.0,0.3090938]
[1645860269952,0.00030862,39156.0,39154.0,0.3090938]
[1645860270350,0.21546829,39155.0,39154.0,0.3090938]
[1645860270550,0.21547142,39155.0,39154.0,0.3090938]
[1645860271550,0.21747142,39155.0,39154.0,0.3090938]
[1645860272203,0.002,39155.0,39154.0,0.6890648]
[1645860273000,0.21578004,39156.0,39155.0,0.379971]
[1645860273400,0.21547142,39156.0,39155.0,0.379971]
[1645860273601,0.21547142,39156.0,39154.0,0.3090938]
[1645860274803,0.215164,39156.0,39154.0,0.3090938]
[1645860276448,0.10030862,39157.0,39154.0,0.3090938]
[1645860276949,0.1,39157.0,39154.0,0.3090938]
[1645860277151,0.10030862,39157.0,39154.0,0.3090938]
[1645860278149,0.1,39157.0,39154.0,0.3090938]
[1645860278351,0.10030862,39157.0,39154.0,0.3090938]
[1645860278851,0.3696479,39157.0,39154.0,0.3090938]
[1645860279049,0.10030862,39157.0,39154.0,0.3090938]
[1645860279307,0.1,39157.0,39154.0,0.3090938]
[1645860279503,0.10030862,39157.0,39154.0,0.3090938]
[1645860280205,0.3696479,39157.0,39154.0,0.3090938]
[1645860280604,0.1,39157.0,39155.0,0.379971]
[1645860280805,0.10030862,39157.0,39155.0,0.00266794]
[1645860281004,0.10030862,39157.0,39154.0,0.3090938]
[1645860281606,0.10030862,39157.0,39155.0,0.379864]
[1645860281811,0.1,39157.0,39155.0,0.379864]
[1645860282007,0.10030862,39157.0,39154.0,0.3100938]
[1645860282207,0.10030862,39157.0,39155.0,0.240541]
[1645860283053,0.1,39157.0,39155.0,0.240541]
[1645860283854,0.1,39157.0,39156.0,0.72734048]
[1645860284056,0.1,39157.0,39156.0,0.379864]
[1645860284456,0.1,39157.0,39156.0,0.429864]
[1645860285454,0.1,39157.0,39156.0,0.78132939]
[1645860285653,0.38441714,39169.0,39157.0,1.24946549]
[1645860285654,0.00030861,39158.0,39157.0,1.24946549]
[1645860285854,0.00030861,39158.0,39157.0,1.87511036]
[1645860286152,0.00030861,39158.0,39157.0,1.55140349]
[1645860286551,0.39847648,39169.0,39158.0,0.379843]
[1645860286801,0.00057523,39165.0,39159.0,0.0512]
[1645860287002,0.00057523,39165.0,39160.0,0.240501]
[1645860287796,0.051,39169.0,39160.0,0.240501]
[1645860287997,0.00030993,39164.0,39160.0,0.240501]
[1645860289000,0.051,39169.0,39160.0,0.240501]
[1645860289199,0.00032204,39164.0,39160.0,0.240501]
[1645860289399,0.00032204,39164.0,39161.0,0.34674094]
[1645860289603,0.00032204,39164.0,39162.0,0.379805]
[1645860290201,0.051,39169.0,39162.0,0.379805]
[1645860290404,0.00032203,39165.0,39163.0,0.34674094]
[1645860290654,0.00032203,39165.0,39164.0,0.240475]
[1645860290849,0.00032203,39165.0,39164.0,0.290475]
[1645860291456,0.051,39169.0,39164.0,0.68721594]
[1645860291753,0.051,39169.0,39165.0,0.430974]
[1645860291754,0.00032203,39166.0,39165.0,0.430974]
[1645860292155,0.00032203,39166.0,39165.0,0.77771494]
[1645860292453,0.00032203,39166.0,39165.0,0.80325494]
[1645860292652,0.051,39169.0,39165.0,0.80325494]
[1645860292854,0.00014301,39167.0,39165.0,0.80325494]
[1645860293054,0.00014301,39167.0,39166.0,0.34674094]
[1645860293253,0.00014301,39167.0,39166.0,0.71274094]
[1645860293854,0.051,39169.0,39166.0,0.71274094]
[1645860294056,0.00014301,39168.0,39167.0,0.379753]
[1645860294298,0.00014301,39168.0,39167.0,0.85323394]
[1645860294497,0.00014301,39168.0,39167.0,1.272433]
[1645860294703,0.00014301,39168.0,39167.0,1.61917394]
[1645860294897,0.051,39169.0,39167.0,1.61917394]
[1645860295096,0.051,39169.0,39168.0,0.61272694]
[1645860295297,0.051,39169.0,39168.0,0.66392694]
[1645860295298,0.05114251,39169.0,39168.0,0.66392694]
[1645860295497,0.05114251,39169.0,39168.0,1.083116]
[1645860295698,0.05114251,39169.0,39168.0,1.058576]
[1645860296098,0.051,39169.0,39168.0,1.058576]
[1645860296899,0.051,39169.0,39168.0,1.057576]
[1645860297700,0.051,39169.0,39168.0,1.059576]
[1645860298167,0.051,39169.0,39168.0,0.76793]
[1645860298366,0.430864,39169.0,39168.0,0.76793]
[1645860298764,0.6278236,39169.0,39168.0,0.76793]
[1645860298965,0.6278236,39169.0,39168.0,0.76593]
[1645860299364,0.6380336,39169.0,39168.0,0.76593]
[1645860299766,0.7390336,39169.0,39168.0,0.76593]
[1645860299968,0.7852336,39169.0,39168.0,0.76593]
[1645860300164,0.6852336,39169.0,39168.0,0.76593]
[1645860300366,0.7852336,39169.0,39168.0,0.76593]
[1645860300764,0.3951596,39169.0,39157.0,0.04946549]
[1645860300965,0.2429596,39169.0,39158.0,0.72660494]
[1645860301165,0.2429596,39169.0,39158.0,0.379864]
[1645860301367,0.34674094,39168.0,39157.0,0.04946549]
[1645860301804,0.34674094,39168.0,39158.0,0.381864]
[1645860302203,0.2429596,39169.0,39158.0,0.381864]
[1645860302407,0.00015439,39165.0,39158.0,0.381864]
[1645860302608,0.00015439,39165.0,39158.0,0.431864]
[1645860303001,0.00015439,39165.0,39158.0,0.429864]
[1645860303402,0.2429596,39169.0,39158.0,0.429864]
[1645860303801,0.00032296,39163.0,39158.0,0.429864]
[1645860304604,0.24425125,39169.0,39158.0,0.679864]
[1645860304605,0.2429596,39169.0,39158.0,0.679864]
[1645860304804,0.000154,39162.0,39158.0,0.679864]
[1645860305752,0.2429596,39169.0,39158.0,0.681864]
[1645860305952,0.000154,39162.0,39158.0,0.681864]
[1645860306955,0.2429596,39169.0,39158.0,0.679864]
[1645860307153,0.00015403,39162.0,39158.0,0.679864]
[1645860307953,0.00015403,39162.0,39158.0,0.705404]
[1645860308154,0.2429596,39169.0,39158.0,0.679864]
[1645860308553,0.2429596,39169.0,39158.0,0.729864]
[1645860308554,0.00032273,39162.0,39158.0,0.729864]
[1645860309401,0.2429596,39169.0,39158.0,0.729864]
[1645860309803,0.00032273,39162.0,39158.0,0.729864]
[1645860310703,0.2429596,39169.0,39158.0,0.729864]
[1645860310902,0.2429596,39169.0,39168.0,0.00241827]
[1645860311104,0.046,39169.0,39168.0,0.00241827]
[1645860311303,0.046,39169.0,39168.0,0.38228227]
[1645860311705,0.046,39169.0,39168.0,0.38328227]
[1645860313053,0.046,39169.0,39168.0,0.38228227]
[1645860313850,0.048,39169.0,39168.0,0.38228227]
[1645860315052,0.046,39169.0,39168.0,0.38228227]
[1645860315859,0.048,39169.0,39168.0,0.38228227]
[1645860316356,0.048,39169.0,39168.0,0.77902321]
[1645860316556,0.048,39169.0,39168.0,0.80456321]
[1645860316814,0.048,39169.0,39168.0,0.85576321]
[1645860317011,0.048,39169.0,39168.0,0.83022321]
[1645860317012,0.046,39169.0,39168.0,0.83022321]
[1645860317211,0.046,39169.0,39168.0,0.48348227]
[1645860317811,0.046,39169.0,39168.0,0.48548227]
[1645860318912,0.046,39169.0,39168.0,0.48348227]
[1645860319712,0.046,39169.0,39168.0,0.83022321]
[1645860319913,0.046,39169.0,39168.0,0.43228227]
[1645860320211,0.046,39169.0,39168.0,0.77902321]
[1645860320653,0.046,39169.0,39168.0,1.02902321]
[1645860321950,0.046,39169.0,39168.0,0.68428227]
[1645860322958,0.046,39169.0,39168.0,0.68228227]
[1645860323851,0.046,39169.0,39168.0,0.68428227]
[1645860324054,0.046,39169.0,39168.0,0.63428227]
[1645860324301,0.0972,39169.0,39168.0,0.25441827]
[1645860324501,0.477064,39169.0,39168.0,0.25441827]
[1645860324900,0.0972,39169.0,39168.0,0.25441827]
[1645860325103,0.28981088,39169.0,39168.0,0.25441827]
[1645860325700,0.28981088,39169.0,39168.0,0.25241827]
[1645860325903,0.2896186,39169.0,39168.0,0.25241827]
[1645860329755,0.2896186,39169.0,39168.0,0.25341827]
[1645860330956,0.2896186,39169.0,39168.0,0.25241827]
[1645860333805,0.2896186,39169.0,39168.0,0.25341827]
[1645860334208,0.63635954,39169.0,39168.0,0.25341827]
[1645860334507,0.6694826,39169.0,39168.0,0.25341827]
[1645860334704,0.7694826,39169.0,39168.0,0.25341827]
[1645860334904,0.6694826,39169.0,39168.0,0.25341827]
[1645860335104,1.11622354,39169.0,39168.0,0.25241827]
[1645860335304,0.7694826,39169.0,39168.0,0.25241827]
[1645860335556,1.11622354,39169.0,39168.0,0.25241827]
[1645860335756,0.7724826,39169.0,39168.0,0.25241827]
[1645860335957,0.6724826,39169.0,39168.0,0.25241827]
[1645860336158,0.7724826,39169.0,39168.0,0.25241827]
[1645860336362,1.09534327,39169.0,39168.0,0.25241827]
[1645860336557,1.44208421,39169.0,39168.0,0.25241827]
[1645860336757,1.06222021,39169.0,39168.0,0.25241827]
[1645860336957,1.44208421,39169.0,39168.0,0.25241827]
[1645860337158,1.11622354,39169.0,39168.0,0.25241827]
[1645860337459,0.379864,39167.0,39164.0,0.05]
[1645860337659,0.36924548,39165.0,39164.0,0.05]
[1645860337860,0.531064,39165.0,39164.0,0.05]
[1645860338864,0.379864,39164.0,39161.0,0.05]
[1645860339060,0.61084366,39162.0,39157.0,0.04946549]
[1645860339299,0.28217966,39162.0,39157.0,0.04946549]
[1645860339500,0.21538531,39161.0,39157.0,0.04946549]
[1645860339699,0.21569703,39161.0,39157.0,0.04946549]
[1645860339899,0.21569703,39161.0,39157.0,0.05046549]
[1645860340299,0.00031172,39161.0,39157.0,0.05046549]
[1645860340500,0.0512,39160.0,39157.0,0.05046549]
[1645860340900,0.0512,39160.0,39157.0,0.30046549]
[1645860341100,0.0512,39160.0,39157.0,0.29946549]
[1645860341902,0.0512,39160.0,39157.0,0.30046549]
[1645860342102,0.05151173,39160.0,39157.0,0.30046549]
[1645860342302,0.05151173,39160.0,39157.0,0.05046549]
[1645860342701,0.00031173,39160.0,39157.0,0.05046549]
[1645860343152,0.379864,39161.0,39157.0,0.04946549]
[1645860343352,0.00031173,39160.0,39157.0,0.04946549]
[1645860343752,0.00031173,39160.0,39157.0,0.05046549]
[1645860344353,0.23097966,39162.0,39157.0,0.05046549]
[1645860344553,0.00031173,39160.0,39157.0,0.05046549]
[1645860345158,0.00031173,39160.0,39157.0,0.04946549]
[1645860345555,0.28217966,39162.0,39157.0,0.04946549]
[1645860345754,0.00014276,39160.0,39157.0,0.04946549]
[1645860346803,0.49756497,39162.0,39157.0,0.04946549]
[1645860347003,0.00031146,39160.0,39157.0,0.04946549]
[1645860347502,7.601e-05,39160.0,39157.0,0.04946549]
[1645860347903,0.28217966,39162.0,39157.0,0.05046549]
[1645860349605,0.28217966,39162.0,39157.0,0.04946549]
[1645860349805,0.28217966,39162.0,39157.0,0.05046549]
[1645860350659,0.28234405,39162.0,39157.0,0.05046549]
[1645860351157,0.28234405,39162.0,39157.0,0.04946549]
[1645860351561,0.28217966,39162.0,39157.0,0.04946549]
[1645860351760,0.28251276,39162.0,39157.0,0.04946549]
[1645860352062,0.28251276,39162.0,39157.0,0.07046549]
[1645860352660,0.28217966,39162.0,39157.0,0.07046549]
[1645860352859,0.28251276,39162.0,39157.0,0.07046549]
[1645860353060,0.28251276,39162.0,39157.0,0.06946549]
[1645860353862,0.28217966,39162.0,39157.0,0.07046549]
[1645860354164,0.23097966,39162.0,39157.0,0.07046549]
[1645860354401,0.23131276,39162.0,39157.0,0.07046549]
[1645860355303,0.23097966,39162.0,39157.0,0.06946549]
[1645860355900,0.23097966,39162.0,39157.0,0.07046549]
[1645860357000,0.0512,39165.0,39157.0,0.07046549]
[1645860357203,0.21538531,39166.0,39157.0,0.06946549]
[1645860357401,0.34639531,39167.0,39157.0,0.06946549]
[1645860357801,0.34548591,39167.0,39157.0,0.07146549]
[1645860358056,0.22611273,39166.0,39157.0,0.07146549]
[1645860358357,0.22611273,39166.0,39158.0,0.34627088]
[1645860358756,0.22611273,39166.0,39157.0,0.07146549]
[1645860358959,0.00032254,39164.0,39157.0,0.07146549]
[1645860359158,0.00032254,39164.0,39157.0,0.06946549]
[1645860359358,0.00032254,39164.0,39157.0,0.16936549]
[1645860359659,0.00032254,39164.0,39157.0,0.06946549]
[1645860359864,0.22611273,39166.0,39157.0,0.06946549]
[1645860360259,0.00032609,39162.0,39158.0,0.3794104]
[1645860360460,0.00032609,39162.0,39158.0,0.72568128]
[1645860361060,0.22611273,39166.0,39158.0,0.72568128]
[1645860361260,0.1198906,39167.0,39158.0,0.34627088]
[1645860361460,0.00032609,39162.0,39159.0,0.379844]
[1645860362305,0.1198906,39167.0,39159.0,0.379844]
[1645860362509,0.00032609,39162.0,39160.0,0.34627088]
[1645860362705,0.00032609,39162.0,39161.0,0.379844]
[1645860362905,0.00032609,39162.0,39159.0,0.379844]
[1645860363507,0.5033,39168.0,39157.0,0.06946549]
[1645860363706,0.0002888,39162.0,39157.0,0.06946549]
[1645860364006,0.19004498,39163.0,39158.0,0.379844]
[1645860364305,0.19004498,39163.0,39157.0,0.06946549]
[1645860364908,0.379844,39162.0,39157.0,0.06946549]
[1645860365110,0.0512,39161.0,39157.0,0.06946549]
[1645860365308,0.379844,39160.0,39157.0,0.06946549]
[1645860365553,0.0512,39160.0,39157.0,0.06946549]
[1645860365956,0.0522,39160.0,39157.0,0.06946549]
[1645860367154,0.0512,39160.0,39157.0,0.06946549]
[1645860367855,0.0512,39160.0,39157.0,0.07046549]
[1645860369327,0.0512,39160.0,39157.0,0.06946549]
[1645860369927,0.0512,39160.0,39157.0,0.07046549]
[1645860371127,0.0512,39160.0,39157.0,0.06946549]
[1645860379201,0.21538531,39158.0,39157.0,0.06946549]
[1645860379406,1.04473937,39158.0,39157.0,0.06901189]
[1645860379601,0.431044,39158.0,39157.0,0.06901189]
[1645860380005,0.433044,39158.0,39157.0,0.06901189]
[1645860380206,0.70227564,39158.0,39157.0,0.06901189]
[1645860380406,0.433044,39158.0,39157.0,0.06901189]
[1645860380669,0.70227564,39158.0,39157.0,0.06901189]
[1645860381063,0.433044,39158.0,39157.0,0.06901189]
[1645860381264,0.70023471,39158.0,39157.0,0.06901189]
[1645860381965,0.70123471,39158.0,39157.0,0.06901189]
[1645860382362,0.432044,39158.0,39157.0,0.06901189]
[1645860383267,0.431044,39158.0,39157.0,0.06901189]
[1645860383866,0.70024081,39158.0,39157.0,0.06901189]
[1645860386013,0.26654012,39158.0,39157.0,0.06901189]
[1645860386215,0.0512,39158.0,39157.0,0.06901189]
[1645860386413,0.21534012,39159.0,39157.0,0.06901189]
[1645860387314,0.21534012,39160.0,39157.0,0.06901189]
[1645860387614,0.21534012,39161.0,39157.0,0.06901189]
[1645860388662,0.21534012,39162.0,39157.0,0.06901189]
[1645860389465,0.003,39165.0,39158.0,0.72611488]
[1645860389466,0.21534012,39163.0,39158.0,0.72611488]
[1645860389667,0.21534012,39164.0,39158.0,0.379844]
[1645860389863,0.21834012,39165.0,39157.0,0.06901189]
[1645860390064,0.21534012,39165.0,39158.0,0.379844]
[1645860390265,0.21534012,39165.0,39157.0,0.07001189]
[1645860390864,0.21534012,39165.0,39157.0,0.41628277]
[1645860391069,0.21534012,39164.0,39157.0,0.41628277]
[1645860391265,0.21534012,39164.0,39157.0,0.07001189]
[1645860391468,0.21566837,39164.0,39157.0,0.07001189]
[1645860391910,0.21566837,39164.0,39157.0,0.06901189]
[1645860392106,0.00032825,39164.0,39158.0,0.379844]
[1645860392507,0.21534012,39165.0,39157.0,0.06901189]
[1645860392707,0.00032825,39164.0,39157.0,0.06901189]
[1645860392908,0.21566837,39164.0,39157.0,0.06901189]
[1645860393712,0.21534012,39164.0,39157.0,0.06901189]
[1645860393909,0.21565218,39164.0,39157.0,0.06901189]
[1645860394710,0.21534012,39163.0,39157.0,0.06901189]
[1645860395312,0.21565218,39164.0,39157.0,0.06901189]
[1645860395963,0.21634012,39164.0,39157.0,0.06901189]
[1645860396365,0.21665218,39164.0,39157.0,0.06901189]
[1645860397162,0.21634012,39164.0,39157.0,0.06901189]
[1645860397363,0.21534012,39164.0,39157.0,0.06901189]
[1645860397564,0.21565327,39164.0,39157.0,0.06901189]
[1645860397963,0.21665327,39164.0,39157.0,0.06901189]
[1645860398364,0.21634012,39164.0,39157.0,0.06901189]
[1645860398666,0.21665327,39164.0,39157.0,0.06901189]
[1645860398870,0.21665327,39164.0,39158.0,0.72611488]
[1645860399066,0.00131315,39164.0,39158.0,0.72611488]
[1645860399308,0.00031315,39164.0,39158.0,0.72611488]
[1645860399709,0.21534012,39166.0,39158.0,0.72611488]
[1645860399915,0.00031315,39164.0,39158.0,0.72711488]
[1645860400108,0.00031315,39164.0,39158.0,0.380844]
[1645860400310,0.00031315,39164.0,39159.0,0.28359482]
[1645860400514,0.00031315,39164.0,39160.0,0.240053]
[1645860400710,0.00031315,39164.0,39162.0,0.379803]
[1645860400913,0.04580772,39169.0,39162.0,0.379803]
[1645860401110,0.00031308,39164.0,39161.0,0.240042]
[1645860401311,0.00031308,39164.0,39161.0,0.4555369]
[1645860401910,0.00031308,39164.0,39161.0,0.4565369]
[1645860402110,0.04580772,39169.0,39161.0,0.241042]
[1645860402310,0.00031308,39164.0,39161.0,0.241042]
[1645860403160,0.00031308,39164.0,39161.0,0.240042]
[1645860403355,0.04580772,39169.0,39161.0,0.240042]
[1645860403556,0.00031308,39164.0,39161.0,0.240042]
[1645860404460,0.21526195,39163.0,39161.0,0.240042]
[1645860405057,0.21526195,39163.0,39157.0,0.02]
[1645860405258,0.21526195,39163.0,39158.0,0.240067]
[1645860405460,0.21526195,39163.0,39157.0,0.02]
[1645860406810,0.21526195,39163.0,39158.0,0.240069]
[1645860408008,0.21526195,39163.0,39158.0,0.241069]
[1645860409211,0.21526195,39163.0,39158.0,0.240069]
[1645860412057,0.21526195,39163.0,39158.0,0.241069]
[1645860412854,0.27135784,39169.0,39158.0,0.241069]
[1645860413156,0.0003084,39164.0,39158.0,0.001]
[1645860413353,0.0003084,39164.0,39158.0,0.240065]
[1645860414156,0.21074618,39165.0,39158.0,0.240065]
[1645860414412,0.00031308,39164.0,39158.0,0.240065]
[1645860415314,0.21074618,39165.0,39158.0,0.240065]
[1645860416112,0.21074618,39165.0,39158.0,0.242065]
[1645860416814,0.27135784,39169.0,39159.0,0.240058]
[1645860417217,0.27135784,39169.0,39157.0,0.2354949]
[1645860417414,0.26635784,39169.0,39157.0,0.2354949]
[1645860417815,0.2001353,39166.0,39158.0,0.240064]
[1645860418059,0.00031355,39165.0,39158.0,0.240067]
[1645860418459,0.00031355,39165.0,39158.0,0.58862498]
[1645860418862,0.25614784,39169.0,39158.0,0.58862498]
[1645860419061,0.04080772,39169.0,39158.0,0.58862498]
[1645860419260,0.00032525,39164.0,39158.0,0.58862498]
[1645860419461,0.00032525,39164.0,39158.0,0.61416498]
[1645860419765,0.00032525,39164.0,39158.0,0.82965988]
[1645860420160,0.04080772,39169.0,39158.0,0.61516498]
[1645860420361,0.00032524,39164.0,39160.0,0.240055]
[1645860420861,0.00032524,39164.0,39161.0,0.34855798]
[1645860421160,0.00032524,39164.0,39162.0,0.24004]
[1645860421362,0.04080772,39169.0,39162.0,0.24004]
[1645860421661,0.00032525,39164.0,39163.0,0.240033]
[1645860422507,0.04080772,39169.0,39162.0,0.003]
[1645860422711,0.04080772,39169.0,39165.0,0.02554]
[1645860422909,0.04080772,39169.0,39167.0,0.02554]
[1645860423108,0.04080772,39169.0,39168.0,0.316734]
[1645860424108,0.04080772,39169.0,39168.0,0.291194]
[1645860424510,0.04080772,39169.0,39168.0,0.239994]
[1645860424709,0.04080772,39169.0,39163.0,0.002]
[1645860424914,0.04080772,39169.0,39164.0,0.240022]
[1645860425309,0.2590038,39169.0,39164.0,0.240022]
[1645860425570,0.2590038,39169.0,39159.0,0.2154949]
[1645860425771,0.2590038,39169.0,39157.0,0.2154949]
[1645860425970,0.52554392,39169.0,39156.0,0.6183]
[1645860426171,0.22555012,39168.0,39159.0,0.001]
[1645860426570,0.00033614,39165.0,39159.0,0.001]
[1645860427371,0.21534012,39167.0,39156.0,0.1183]
[1645860427769,0.00033615,39164.0,39156.0,0.1183]
[1645860427969,0.00033615,39164.0,39157.0,0.240069]
[1645860428370,0.00033615,39164.0,39157.0,0.58862698]
[1645860428569,0.22555012,39168.0,39157.0,0.240069]
[1645860428770,0.00033614,39164.0,39156.0,0.46885798]
[1645860428971,0.00033614,39164.0,39157.0,0.240072]
[1645860429602,0.00033614,39164.0,39157.0,0.240075]
[1645860429804,0.22555012,39168.0,39156.0,0.3337949]
[1645860430003,0.00031284,39164.0,39156.0,0.3337949]
[1645860430209,0.00031284,39164.0,39157.0,0.002]
[1645860430803,0.00031284,39164.0,39158.0,0.240069]
[1645860430804,0.23528105,39162.0,39158.0,0.240069]
[1645860431003,0.23528105,39162.0,39157.0,0.002]
[1645860431205,0.0905799,39162.0,39159.0,0.240063]
[1645860431406,0.0905799,39162.0,39158.0,0.240069]
[1645860431603,0.00016612,39164.0,39158.0,0.240069]
[1645860432203,0.21534012,39167.0,39158.0,0.002]
[1645860432404,0.00016612,39164.0,39158.0,0.002]
[1645860433261,0.00016612,39164.0,39158.0,0.2354949]
[1645860433459,0.39141144,39167.0,39158.0,0.2354949]
[1645860433663,0.00033594,39164.0,39158.0,0.2354949]
[1645860434160,0.00033594,39164.0,39158.0,0.2374949]
[1645860434561,0.39141144,39167.0,39158.0,0.2374949]
[1645860434762,0.00033594,39164.0,39158.0,0.2374949]
[1645860435370,0.00033594,39164.0,39158.0,0.2354949]
[1645860435564,0.00033594,39164.0,39159.0,0.240062]
[1645860435763,0.39141144,39167.0,39159.0,0.240061]
[1645860435964,0.39141144,39167.0,39158.0,0.2354949]
[1645860436266,0.00033594,39164.0,39159.0,0.240059]
[1645860436466,0.00033594,39164.0,39158.0,0.02]
[1645860436908,0.21534012,39166.0,39158.0,0.02]
[1645860437409,0.00033594,39164.0,39158.0,0.02]
[1645860438209,0.21534012,39165.0,39158.0,0.02]
[1645860438410,0.00032525,39164.0,39158.0,0.02]
[1645860438610,0.19375889,39161.0,39158.0,0.02]
[1645860440010,0.19375889,39161.0,39160.0,0.00218393]
[1645860444170,0.19375889,39161.0,39160.0,0.00318393]
[1645860444406,0.01021,39167.0,39160.0,0.00318393]
[1645860444407,0.27940681,39167.0,39160.0,0.00318393]
[1645860444611,0.00032428,39164.0,39160.0,0.00318393]
[1645860445106,0.00032428,39164.0,39160.0,0.001]
[1645860445308,0.20005795,39164.0,39160.0,0.001]
[1645860445506,0.20005795,39164.0,39158.0,0.02218393]
[1645860445711,0.20037132,39164.0,39158.0,0.02218393]
[1645860446106,0.20037132,39164.0,39158.0,0.02518393]
[1645860446608,0.20005795,39164.0,39158.0,0.02518393]
[1645860446808,0.00031337,39164.0,39160.0,0.240052]
[1645860447808,0.17900179,39168.0,39160.0,0.240052]
[1645860448072,0.17900179,39168.0,39158.0,0.37044687]
[1645860448073,0.00031337,39164.0,39158.0,0.37044687]
[1645860448373,0.00031337,39164.0,39161.0,0.240048]
[1645860448971,0.21521232,39167.0,39161.0,0.240048]
[1645860449170,0.00031489,39164.0,39160.0,0.001]
[1645860449370,0.00031489,39164.0,39161.0,0.240045]
[1645860450170,0.39421411,39168.0,39161.0,0.241045]
[1645860450371,0.00031489,39164.0,39161.0,0.001]
[1645860450572,0.00031489,39164.0,39162.0,0.240037]
[1645860450770,0.00031489,39164.0,39162.0,0.24004]
[1645860450977,0.00031489,39164.0,39161.0,0.001]
[1645860451371,0.21521232,39167.0,39160.0,0.00202147]
[1645860451570,0.00031489,39164.0,39160.0,0.00202147]
[1645860452215,0.00031489,39164.0,39161.0,0.240047]
[1645860452416,0.00031489,39164.0,39160.0,0.00202147]
[1645860452616,0.21521232,39167.0,39160.0,0.00202147]
[1645860452916,0.00031473,39164.0,39160.0,0.00202147]
[1645860453716,0.21521232,39166.0,39160.0,0.00202147]
[1645860454219,0.00031473,39164.0,39160.0,0.00202147]
[1645860454816,0.22141084,39162.0,39160.0,0.00202147]
[1645860455220,0.22141084,39162.0,39158.0,0.02103715]
[1645860455858,0.22141084,39162.0,39158.0,0.23679399]
[1645860456062,0.22141084,39162.0,39158.0,0.02103715]
[1645860456260,0.22141084,39162.0,39158.0,0.02303715]
[1645860456857,0.22141084,39162.0,39158.0,0.23879399]
[1645860457057,0.22141084,39162.0,39158.0,0.02303715]
[1645860457458,0.22141084,39162.0,39158.0,0.02103715]
[1645860458058,0.22141084,39162.0,39159.0,0.24006]
[1645860458258,0.22141084,39162.0,39159.0,0.45581684]
[1645860458662,0.22141084,39162.0,39159.0,0.21575684]
[1645860458859,0.22141084,39162.0,39158.0,0.02303715]
[1645860458860,0.22141084,39162.0,39158.0,0.23879399]
[1645860459504,0.22141084,39162.0,39158.0,0.23679399]
[1645860460104,0.22141084,39162.0,39158.0,0.23879399]
[1645860460304,0.22141084,39162.0,39160.0,0.00098078]
[1645860460705,0.22141084,39162.0,39158.0,0.01901793]
[1645860461104,0.21521232,39166.0,39165.0,0.05454418]
[1645860461311,0.59487108,39166.0,39165.0,0.05454418]
[1645860461504,0.21503308,39166.0,39165.0,0.05454418]
[1645860464264,0.50765107,39167.0,39165.0,0.05454418]
[1645860464464,0.379838,39166.0,39165.0,0.05454418]
[1645860464663,0.50748495,39167.0,39165.0,0.05454418]
[1645860464864,0.65924481,39166.0,39165.0,0.05454418]
[1645860465063,0.27940681,39166.0,39165.0,0.05454418]